bitfinex/quotes_ETHUSD_20240718
["timestamp","ask_amount","ask_price","bid_price","bid_amount"]
[1721314357613,2.90895,3437.7,3435.6,5.33707]
[1721314357614,2.90972,3436.8,3436.1,0.046238]
[1721314357826,3.0,3437.6,3436.1,0.046238]
[1721314357827,2.90996,3436.5,3436.1,0.046238]
[1721314358117,2.90996,3436.5,3435.7,2.91056]
[1721314358118,2.90961,3436.9,3435.7,0.05819625]
[1721314358316,2.90961,3436.9,3435.6,2.4264]
[1721314358317,2.90943,3437.1,3436.3,2.91003]
[1721314358502,2.90968,3436.8,3435.9,2.91037]
[1721314358704,2.90968,3436.8,3436.4,0.04610366]
[1721314358916,2.90968,3436.8,3435.8,2.91051]
[1721314358917,2.90977,3436.7,3436.5,0.04605889]
[1721314359091,2.9096,3436.9,3436.5,0.04605889]
[1721314359281,2.9096,3436.9,3436.1,2.91026]
[1721314359481,2.90968,3436.8,3436.2,0.04619321]
[1721314359935,2.90945,3437.1,3436.2,0.04619321]
[1721314359936,2.90955,3437.0,3436.2,0.04619321]
[1721314360084,3.0,3437.8,3436.2,0.04619321]
[1721314360085,2.9099,3436.6,3436.2,0.04619321]
[1721314360279,2.90901,3437.6,3436.2,0.04619321]
[1721314360280,3.0,3437.8,3436.2,0.04619321]
[1721314360496,2.91018,3436.3,3435.5,7.32]
[1721314360717,2.91018,3436.3,3435.4,2.91085]
[1721314360917,2.91018,3436.3,3435.2,2.91101]
[1721314360918,2.91018,3436.3,3435.5,2.9564141]
[1721314361286,2.91019,3436.2,3435.5,0.0456341]
[1721314361516,2.91003,3436.4,3435.5,0.0456341]
[1721314361702,2.2805,3437.1,3435.1,3.1262014]
[1721314361703,2.90971,3436.8,3435.1,3.1262014]
[1721314361903,2.90979,3436.7,3435.6,0.0455893]
[1721314362105,2.90971,3436.8,3435.7,2.96880528]
[1721314362319,2.90961,3436.9,3436.0,2.91035]
[1721314362693,2.90961,3436.9,3436.1,2.95569361]
[1721314363030,2.90951,3437.0,3436.2,0.55]
[1721314363384,2.90951,3437.0,3436.2,3.46018]
[1721314363597,2.90892,3437.7,3436.3,2.95537877]
[1721314363819,2.475,3437.8,3436.3,2.95537877]
[1721314363820,2.475,3437.8,3436.4,0.05818973]
[1721314364121,2.9095,3437.1,3436.5,0.55]
[1721314364324,2.90934,3437.2,3436.5,0.04524923]
[1721314364493,2.9096,3436.9,3436.5,0.04524923]
[1721314364697,2.9096,3436.9,3436.6,0.04515093]
[1721314364902,2.90943,3437.1,3436.6,0.04515093]
[1721314365134,2.90943,3437.1,3436.2,3.46019]
[1721314365319,2.90928,3437.3,3436.3,2.9101]
[1721314365320,2.90929,3437.3,3436.3,2.9101]
[1721314365534,2.90892,3437.7,3436.6,2.9098]
[1721314365747,2.90892,3437.7,3436.4,0.55]
[1721314365748,2.475,3437.8,3436.7,0.55]
[1721314366056,5.38385,3437.8,3436.8,2.96784337]
[1721314366361,2.90894,3437.7,3436.9,0.55]
[1721314366641,2.90906,3437.6,3436.9,0.59501663]
[1721314366847,2.90889,3437.8,3436.9,3.50460663]
[1721314367051,2.90892,3437.7,3436.9,0.59501663]
[1721314367360,2.90909,3437.5,3436.9,0.59501663]
[1721314367507,2.90924,3437.4,3436.9,0.04501663]
[1721314367706,2.90924,3437.4,3435.9,3.068]
[1721314367707,2.9095,3437.1,3436.6,0.55]
[1721314367962,2.90965,3436.9,3436.3,0.55]
[1721314368112,2.9097,3436.8,3436.3,0.34071885]
[1721314368313,3.0,3438.0,3436.3,0.34071885]
[1721314368314,2.90956,3437.0,3436.3,0.34071885]
[1721314368557,2.90956,3437.0,3436.0,5.91035]
[1721314368558,2.90901,3437.6,3436.0,3.0]
[1721314368886,2.90932,3437.3,3436.4,2.91001]
[1721314369037,2.9094,3437.2,3436.2,2.91013]
[1721314369213,2.9095,3437.1,3436.2,2.91013]
[1721314369413,2.90952,3437.0,3436.2,2.91013]
[1721314369634,2.9094,3437.2,3436.4,2.91]
[1721314370012,2.90952,3437.0,3436.5,0.55]
[1721314370216,2.90952,3437.0,3436.3,0.55]
[1721314370953,2.90968,3436.8,3436.3,0.55]
[1721314371158,2.90952,3437.0,3436.1,3.46027]
[1721314371316,2.90937,3437.2,3436.4,0.05819179]
[1721314371525,2.90956,3437.0,3436.1,3.46021]
[1721314372161,2.90969,3436.8,3436.1,0.55]
[1721314372460,2.90969,3436.8,3436.2,0.04530482]
[1721314373157,2.90969,3436.8,3436.3,0.04523958]
[1721314373330,2.366,3437.2,3436.0,0.55]
[1721314373331,2.90993,3436.6,3436.0,0.55]
[1721314373518,2.90993,3436.6,3436.4,0.04522314]
[1721314373519,2.9099,3436.6,3436.4,0.04522314]
[1721314373717,2.366,3437.2,3435.4,5.91083]
[1721314373956,2.91007,3436.4,3435.4,5.91083]
[1721314374157,2.91007,3436.4,3435.6,2.91069]
[1721314374318,5.27539,3437.2,3435.7,2.91058]
[1721314374516,2.90993,3436.5,3435.7,2.91058]
[1721314374720,2.90993,3436.5,3435.5,2.91072]
[1721314374956,2.90993,3436.5,3435.4,2.91084]
[1721314375132,2.90993,3436.5,3435.5,2.91073]
[1721314375133,2.91011,3436.3,3435.5,2.91073]
[1721314375334,2.91003,3436.4,3435.6,2.91064]
[1721314375632,2.90969,3436.8,3435.4,2.91084]
[1721314375834,2.91018,3436.3,3435.4,2.91084]
[1721314376035,2.91018,3436.3,3435.5,3.46077]
[1721314376447,2.91,3436.5,3435.7,2.91054]
[1721314376654,2.91,3436.5,3435.8,0.55]
[1721314376931,2.90954,3437.0,3435.8,3.46049]
[1721314377130,2.90943,3437.1,3436.0,2.91032]
[1721314377330,3.0,3437.2,3436.1,0.55]
[1721314377546,3.0,3437.2,3435.8,3.4605]
[1721314377547,2.90958,3437.0,3436.0,2.91032]
[1721314377738,2.90958,3437.0,3436.2,2.91016]
[1721314378027,2.90921,3437.4,3436.4,2.90996]
[1721314378227,2.90907,3437.6,3436.2,2.91012]
[1721314378534,2.90942,3437.2,3436.3,0.55]
[1721314378733,2.90942,3437.2,3436.4,2.91001]
[1721314378930,2.90943,3437.1,3436.5,0.55]
[1721314379132,2.90957,3437.0,3436.3,0.55]
[1721314379331,2.9094,3437.2,3436.3,3.46003]
[1721314379557,2.9094,3437.2,3436.4,2.91001]
[1721314379866,2.90931,3437.3,3436.5,3.51810797]
[1721314380040,2.90931,3437.3,3436.5,2.90992]
[1721314380230,2.90931,3437.3,3436.6,0.05818719]
[1721314380431,2.4233,3438.2,3436.4,0.05818718]
[1721314380655,2.90876,3437.9,3437.0,2.90946]
[1721314380856,2.90876,3437.9,3437.1,2.96759857]
[1721314381056,2.90876,3437.9,3437.0,2.90946]
[1721314381057,2.90877,3437.9,3437.0,2.90946]
[1721314381253,2.90877,3437.9,3437.2,0.55]
[1721314381471,2.90877,3437.9,3436.5,2.9099]
[1721314381472,2.90895,3437.7,3436.3,3.32]
[1721314381677,2.90895,3437.7,3436.8,2.90962]
[1721314381875,2.90895,3437.7,3436.4,0.55]
[1721314381876,2.90937,3437.2,3436.4,0.55]
[1721314382077,5.81849,3437.4,3436.5,2.90988]
[1721314382372,2.90904,3437.6,3436.7,2.90976]
[1721314382578,5.90859,3438.1,3436.4,0.55]
[1721314382746,5.90859,3438.1,3436.5,2.90986]
[1721314382747,5.81826,3437.5,3436.5,2.90986]
[1721314382946,2.9091,3437.5,3436.6,3.45979]
[1721314383146,2.90912,3437.5,3436.6,0.55]
[1721314383459,3.0,3438.1,3436.4,3.46001]
[1721314383460,2.90919,3437.4,3436.4,3.46001]
[1721314383669,2.90941,3437.2,3436.4,3.45994]
[1721314383884,2.90941,3437.2,3436.5,2.90993]
[1721314384175,3.0,3438.1,3436.5,2.90993]
[1721314384176,2.90863,3438.1,3437.4,2.90917]
[1721314384340,2.90863,3438.1,3435.9,0.60384847]
[1721314384341,2.90926,3437.3,3435.9,0.60384847]
[1721314384542,3.200276,3437.2,3435.9,0.60384847]
[1721314384841,3.200276,3437.2,3435.7,3.51443847]
[1721314384842,2.90994,3436.5,3435.7,3.51443847]
[1721314385036,2.90969,3436.8,3435.8,2.91052]
[1721314385352,1.35997398,3437.7,3435.7,0.60384847]
[1721314385546,2.90968,3436.8,3435.7,3.51445847]
[1721314385883,2.90914,3437.5,3436.1,2.91026]
[1721314386055,2.90986,3436.6,3435.7,0.60384847]
[1721314386251,3.0,3437.4,3435.8,0.55]
[1721314386252,2.91012,3436.3,3435.8,0.55]
[1721314386555,2.90958,3437.0,3435.7,0.60384847]
[1721314386556,2.91052,3435.9,3435.7,0.60384847]
[1721314386873,2.91052,3435.9,3435.4,1.5174492]
[1721314386874,2.91078,3435.5,3435.4,1.5174492]
[1721314387179,2.9107,3435.6,3435.4,1.5174492]
[1721314387353,2.9107,3435.6,3435.4,1.5571793]
[1721314387685,5.82156,3435.5,3435.4,1.5571793]
[1721314388036,5.82156,3435.5,3435.4,1.5174492]
[1721314388037,2.91078,3435.5,3435.4,1.5174492]
[1721314388237,2.911,3435.3,3434.7,0.60384847]
[1721314388459,2.3908,3435.9,3434.7,0.60384847]
[1721314388460,2.91119,3435.1,3434.7,0.60384847]
[1721314388634,2.91132,3434.9,3434.7,0.60384847]
[1721314388840,2.91137,3434.8,3434.7,0.60384847]
[1721314389573,2.91129,3434.9,3434.7,0.60384847]
[1721314389942,2.91098,3435.3,3434.7,0.60384847]
[1721314390266,5.30131,3435.9,3434.9,2.91128]
[1721314390267,2.91063,3435.7,3434.9,2.91128]
[1721314390443,5.30126,3435.9,3434.9,2.91128]
[1721314390444,2.91046,3435.9,3434.9,2.91128]
[1721314390644,3.0,3436.0,3434.9,2.91128]
[1721314390846,2.91044,3435.9,3435.0,3.46118]
[1721314391264,2.91044,3435.9,3435.0,3.4612]
[1721314391480,2.91029,3436.1,3435.0,0.55]
[1721314391692,2.91029,3436.1,3434.7,0.60384847]
[1721314391693,2.91037,3436.0,3435.1,2.91106]
[1721314391982,2.91053,3435.8,3435.2,0.55]
[1721314392167,2.91062,3435.7,3434.9,2.91128]
[1721314392494,2.91045,3435.9,3435.0,2.9112]
[1721314392801,5.91006,3436.4,3435.4,2.91086]
[1721314392802,2.91012,3436.3,3435.4,2.91086]
[1721314392959,2.91027,3436.1,3435.4,2.91086]
[1721314393295,2.91012,3436.3,3435.2,2.91102]
[1721314393296,2.91036,3436.0,3435.2,2.91102]
[1721314393482,2.91012,3436.3,3435.3,0.55]
[1721314393882,2.4544,3436.5,3435.3,0.55]
[1721314394210,5.36436,3436.5,3434.1,2.3082]
[1721314394387,2.91104,3435.2,3434.4,2.91171]
[1721314394693,2.91095,3435.3,3434.5,2.91162]
[1721314394864,6.23036,3436.0,3434.1,2.3082]
[1721314394865,2.91128,3435.0,3434.1,5.22015]
[1721314395223,2.91128,3435.0,3434.2,2.91186]
[1721314395362,2.9106,3435.8,3434.1,0.05822146]
[1721314395363,2.3395,3435.8,3434.1,0.05822146]
[1721314395565,2.91071,3435.6,3434.7,2.91144]
[1721314395805,2.91071,3435.6,3434.2,0.09043532]
[1721314395806,2.91071,3435.6,3434.8,2.91136]
[1721314395967,2.91052,3435.9,3434.8,0.03901513]
[1721314395968,2.91098,3435.3,3434.8,0.03901513]
[1721314396158,2.91104,3435.2,3434.5,2.91161]
[1721314396694,2.9108,3435.5,3434.2,0.09043532]
[1721314396695,2.91138,3434.8,3434.2,0.09043532]
[1721314396866,2.91138,3434.8,3434.6,0.03910477]
[1721314397059,2.91136,3434.9,3434.2,0.09043532]
[1721314397366,2.91136,3434.9,3434.7,0.03910407]
[1721314397586,2.91136,3434.9,3434.2,0.09043532]
[1721314397892,2.91136,3434.9,3434.8,0.03905926]
[1721314398192,2.91113,3435.1,3434.2,3.00231532]
[1721314398398,2.91097,3435.3,3434.8,0.03926249]
[1721314398563,2.91092,3435.4,3434.6,2.91149]
[1721314398760,2.91075,3435.6,3434.9,0.03923186]
[1721314398973,2.91075,3435.6,3434.7,2.9114]
[1721314399173,2.91088,3435.4,3435.0,0.0391902]
[1721314399502,2.91075,3435.6,3434.8,2.91137]
[1721314399677,2.435,3436.0,3434.2,0.09043532]
[1721314399678,5.34541,3436.0,3435.1,0.03914539]
[1721314399874,5.34541,3436.0,3434.2,0.09043532]
[1721314399875,2.91105,3435.2,3434.2,0.09043532]
[1721314400075,8.73285,3435.3,3435.2,0.03910058]
[1721314400308,8.73285,3435.3,3433.7,2.91224]
[1721314400309,2.9116,3434.6,3433.7,2.91224]
[1721314400515,2.9116,3434.6,3433.5,2.9124]
[1721314400722,2.9118,3434.3,3433.8,0.03970132]
[1721314400872,2.9118,3434.3,3433.5,2.9124]
[1721314400873,2.91165,3434.5,3433.7,2.91228]
[1721314401073,2.397,3435.1,3434.0,2.91198]
[1721314401307,5.30812,3435.1,3433.8,2.95190132]
[1721314401606,2.91177,3434.4,3433.9,0.03965648]
[1721314401783,2.91163,3434.5,3433.9,0.03965648]
[1721314402112,2.91157,3434.6,3434.0,0.03961164]
[1721314402276,2.91132,3434.9,3434.0,0.03961164]
[1721314402482,2.91132,3434.9,3433.9,2.91208]
[1721314402682,2.91132,3434.9,3434.1,0.03956681]
[1721314403016,2.91132,3434.9,3434.2,0.03952197]
[1721314403216,2.91139,3434.8,3434.2,0.03952197]
[1721314403405,2.91132,3434.9,3434.2,0.03952197]
[1721314403731,2.91113,3435.1,3434.3,2.91179]
[1721314404036,3.784255,3435.3,3434.4,0.03943232]
[1721314404234,2.91081,3435.5,3434.5,2.91156]
[1721314404391,2.4981,3435.6,3434.5,2.91156]
[1721314404392,2.91087,3435.4,3434.5,0.03948837]
[1721314404599,2.4981,3435.6,3434.5,0.03948837]
[1721314404600,2.91117,3435.1,3434.5,0.03948837]
[1721314404791,2.91096,3435.3,3434.5,2.91162]
[1721314404994,2.91081,3435.5,3434.6,0.03944039]
[1721314405194,2.91081,3435.5,3434.6,2.91153]
[1721314405195,2.91088,3435.4,3434.6,2.91153]
[1721314405378,2.9107,3435.6,3434.7,2.95079252]
[1721314405728,3.0,3435.7,3434.7,0.03933252]
[1721314405906,2.91063,3435.7,3434.7,2.95075252]
[1721314406113,2.91063,3435.7,3434.2,3.60821695]
[1721314406114,2.4981,3436.1,3435.1,2.91104]
[1721314406411,2.91021,3436.2,3434.4,0.05821695]
[1721314406412,0.540831,3436.0,3435.2,2.95006846]
[1721314406580,3.32,3437.0,3435.5,2.91076]
[1721314406581,2.91012,3436.3,3435.5,2.91076]
[1721314407086,1.33416602,3437.3,3435.5,2.91076]
[1721314407087,2.90994,3436.5,3435.6,0.03892926]
[1721314407419,2.90994,3436.5,3435.7,2.91057]
[1721314407631,2.91018,3436.3,3435.7,0.03880253]
[1721314407841,0.59290983,3437.3,3435.4,0.55]
[1721314408019,2.91025,3436.2,3435.8,0.03875774]
[1721314408320,2.91025,3436.2,3435.4,3.46081]
[1721314408479,2.91007,3436.4,3435.9,0.03871295]
[1721314408684,2.91007,3436.4,3435.6,2.91069]
[1721314408908,2.91007,3436.4,3436.0,0.03866816]
[1721314409111,2.90995,3436.5,3435.7,2.9106]
[1721314409321,2.90955,3437.0,3436.1,0.03862338]
[1721314409522,2.90967,3436.9,3435.9,2.91041]
[1721314409726,2.90956,3437.0,3436.2,0.03843363]
[1721314409932,2.90969,3436.8,3436.1,2.91022]
[1721314410137,2.90969,3436.8,3436.3,0.03831481]
[1721314410287,2.90951,3437.0,3436.2,0.03835959]
[1721314410486,2.90951,3437.0,3435.5,2.91072]
[1721314410487,2.90993,3436.5,3435.5,2.85382332]
[1721314410686,2.91003,3436.4,3436.3,0.03831481]
[1721314410927,3.27581334,3437.0,3435.7,2.91059]
[1721314410928,2.90991,3436.6,3435.7,2.91059]
[1721314411135,2.90991,3436.6,3435.6,3.55]
[1721314411136,0.36629334,3437.0,3435.6,0.55]
[1721314411446,0.36629334,3437.0,3434.6,12.36]
[1721314411447,2.91032,3436.1,3435.7,0.0372984]
[1721314411588,2.91032,3436.1,3434.9,10.23121]
[1721314411589,2.91061,3435.8,3434.9,10.23121]
[1721314411791,2.91061,3435.8,3434.9,2.91121]
[1721314412124,0.582046,3436.1,3434.7,2.91144]
[1721314412125,2.91088,3435.4,3434.7,2.91144]
[1721314412287,2.91075,3435.6,3434.5,2.9116]
[1721314412487,2.91092,3435.4,3434.6,2.91148]
[1721314412916,2.91075,3435.6,3434.3,2.4249]
[1721314412917,2.91075,3435.6,3434.9,2.91128]
[1721314413103,0.59290983,3436.9,3435.8,2.91047]
[1721314413303,1.25114979,3437.0,3435.6,2.91066]
[1721314413304,5.90971,3436.8,3435.6,2.91066]
[1721314413509,5.90971,3436.8,3435.8,2.91052]
[1721314413510,2.90971,3436.8,3435.8,2.91052]
[1721314413688,0.36629334,3437.0,3435.4,2.91084]
[1721314413689,2.90996,3436.5,3435.4,2.91084]
[1721314413884,2.90996,3436.5,3435.7,2.91059]
[1721314413885,2.90999,3436.5,3435.7,2.91059]
[1721314414101,2.91016,3436.3,3435.5,2.91073]
[1721314414297,2.90999,3436.5,3435.6,0.55]
[1721314414619,2.90999,3436.5,3435.6,3.46064]
[1721314414823,2.91002,3436.4,3435.7,2.91058]
[1721314415022,2.91017,3436.3,3435.6,0.55]
[1721314415183,2.90999,3436.5,3435.6,0.55]
[1721314415383,0.36629334,3437.0,3435.3,2.3312]
[1721314415384,2.90985,3436.6,3435.8,2.91047]
[1721314415619,2.90977,3436.7,3435.9,2.91036]
[1721314416343,2.90998,3436.5,3435.7,2.91054]
[1721314416553,2.90998,3436.5,3435.4,0.55]
[1721314416554,5.25448,3437.1,3436.2,2.91014]
[1721314416688,5.25448,3437.1,3435.4,0.55]
[1721314416689,2.90961,3436.9,3436.1,2.91027]
[1721314417133,5.91453132,3437.1,3435.9,2.91041]
[1721314417134,2.90954,3437.0,3435.9,2.91041]
[1721314417341,2.90984,3436.7,3435.9,2.91041]
[1721314417537,2.90961,3436.9,3434.4,7.32]
[1721314417538,2.3264,3436.9,3434.4,7.32]
[1721314417688,2.3264,3436.9,3434.3,14.6545]
[1721314417689,2.91079,3435.5,3434.3,2.2945]
[1721314417887,2.91079,3435.5,3434.5,2.91156]
[1721314418088,2.91095,3435.3,3434.5,2.91156]
[1721314418326,2.91095,3435.3,3434.6,0.03397921]
[1721314418718,2.4518,3435.9,3434.6,0.03397921]
[1721314418719,2.91122,3435.0,3434.6,0.03397921]
[1721314418896,3.04470983,3435.9,3434.1,2.91191]
[1721314419107,2.91101,3435.3,3434.7,0.03393439]
[1721314419301,2.91137,3434.8,3434.1,2.91195]
[1721314419503,0.59290983,3435.7,3433.4,3.32]
[1721314419711,2.91133,3434.9,3433.9,2.91213]
[1721314419894,2.91143,3434.8,3433.9,2.91213]
[1721314420230,2.91122,3435.0,3434.2,2.91186]
[1721314420527,2.91078,3435.5,3434.0,2.3429]
[1721314420722,2.91087,3435.4,3434.4,2.91164]
[1721314420894,2.91105,3435.2,3434.5,2.91162]
[1721314421094,5.19061,3435.6,3434.0,2.43334058]
[1721314421343,5.19065,3435.6,3434.5,2.91162]
[1721314421548,2.2799,3435.6,3434.7,2.91145]
[1721314421707,2.2799,3435.6,3434.1,3.46196]
[1721314421708,2.91102,3435.3,3434.4,2.91166]
[1721314422041,2.9111,3435.2,3434.4,2.91166]
[1721314422627,2.2799,3435.6,3434.2,2.91188]
[1721314422628,2.91121,3435.0,3434.2,2.91188]
[1721314422815,2.91105,3435.2,3434.3,2.9118]
[1721314423018,2.2799,3435.6,3434.5,2.91158]
[1721314423019,5.19062,3435.6,3434.5,2.91158]
[1721314423348,5.19062,3435.6,3434.6,2.91151]
[1721314423349,2.91096,3435.3,3434.6,2.91151]
[1721314423629,2.91046,3435.9,3434.8,2.9113]
[1721314423836,2.91066,3435.7,3434.8,2.9113]
[1721314424032,2.91032,3436.1,3435.0,2.9112]
[1721314424232,2.91036,3436.0,3435.2,2.91098]
[1721314424440,2.91036,3436.0,3435.3,2.91093]
[1721314425035,2.91036,3436.0,3435.1,2.91112]
[1721314425256,2.91084,3435.5,3434.8,2.91137]
[1721314425439,2.91031,3436.1,3434.5,3.0]
[1721314425440,2.9105,3435.9,3434.5,3.0]
[1721314425641,2.91037,3436.0,3435.3,2.91093]
[1721314426349,2.91029,3436.1,3435.3,2.91093]
[1721314426499,2.91044,3435.9,3435.1,2.91105]
[1721314426704,2.91058,3435.8,3435.0,2.91119]
[1721314426899,2.91085,3435.5,3434.7,2.91145]
[1721314427145,0.582102,3435.8,3434.0,3.00242058]
[1721314427146,2.911,3435.3,3434.4,2.91171]
[1721314427434,2.91112,3435.1,3434.4,2.91171]
[1721314427638,2.911,3435.3,3434.5,2.91162]
[1721314427837,2.91115,3435.1,3434.4,2.91171]
[1721314428017,2.91121,3435.0,3434.2,2.91182]
[1721314428213,2.91092,3435.4,3434.0,0.09044058]
[1721314428414,2.91092,3435.4,3434.7,2.91145]
[1721314428619,2.91071,3435.6,3434.8,2.91132]
[1721314428933,2.91071,3435.6,3434.9,2.91128]
[1721314429139,2.91071,3435.6,3434.7,2.91139]
[1721314429357,2.91054,3435.8,3435.0,2.91115]
[1721314429648,2.91054,3435.8,3434.5,2.91159]
[1721314429649,5.91031,3436.1,3435.2,2.91095]
[1721314430044,5.91031,3436.1,3435.2,2.91099]
[1721314430271,2.4103,3436.2,3435.5,2.91076]
[1721314430418,3.29262698,3436.2,3435.3,2.91094]
[1721314430623,2.91027,3436.1,3435.3,2.91094]
[1721314430956,3.29262698,3436.2,3435.4,2.91084]
[1721314431152,2.91028,3436.1,3435.4,2.91084]
[1721314431316,2.91049,3435.9,3435.1,2.91111]
[1721314431519,3.88553681,3436.2,3435.1,2.91111]
[1721314431739,2.91033,3436.1,3435.3,2.91094]
[1721314431932,2.91036,3436.0,3435.3,2.91094]
[1721314433259,0.59290983,3436.4,3435.5,2.91075]
[1721314433419,3.34894263,3436.3,3435.5,2.91077]
[1721314433616,3.34894263,3436.3,3435.6,0.0325936]
[1721314434039,2.91019,3436.2,3435.5,2.91077]
[1721314434472,0.43877263,3436.3,3435.5,2.91077]
[1721314434765,2.91058,3435.8,3435.1,2.91105]
[1721314434962,2.91042,3436.0,3435.1,2.91104]
[1721314435162,3.50304983,3436.3,3435.2,0.03274143]
[1721314435480,2.9102,3436.2,3435.5,2.91076]
[1721314435965,2.91027,3436.1,3435.6,0.03255909]
[1721314436124,0.291027,3436.1,3435.6,0.03255909]
[1721314436454,3.201297,3436.1,3435.4,2.91086]
[1721314436662,3.50296983,3436.4,3435.7,0.03251116]
[1721314436866,0.59290983,3436.5,3435.5,2.91072]
[1721314437028,2.91015,3436.3,3435.8,0.03246637]
[1721314437234,2.91015,3436.3,3435.5,2.91072]
[1721314437434,2.91019,3436.2,3435.9,0.03242158]
[1721314437635,2.91019,3436.2,3435.3,2.91092]
[1721314437636,2.91027,3436.1,3435.3,2.91092]
[1721314437830,2.91027,3436.1,3436.0,0.03237679]
[1721314438035,2.91027,3436.1,3435.3,2.91092]
[1721314438262,2.91027,3436.1,3436.0,0.032347]
[1721314438572,2.91051,3435.9,3435.1,2.91108]
[1721314438779,2.91033,3436.1,3435.2,2.91101]
[1721314439066,2.91041,3436.0,3435.2,2.91101]
[1721314439448,2.91033,3436.1,3435.3,2.91091]
[1721314440133,0.59290983,3436.3,3435.6,2.91067]
[1721314440446,0.59290983,3436.6,3435.2,2.3749]
[1721314440645,0.59290983,3436.6,3435.4,2.91078]
[1721314440646,2.91017,3436.3,3435.4,2.91078]
[1721314440954,2.91,3436.5,3435.7,2.91059]
[1721314441151,2.91,3436.5,3435.5,2.91073]
[1721314441152,2.91015,3436.3,3435.5,2.91072]
[1721314441354,2.90997,3436.5,3435.6,2.91061]
[1721314441570,2.90997,3436.5,3435.7,2.9106]
[1721314441736,0.49575839,3436.6,3435.3,0.55]
[1721314441737,0.49575839,3436.6,3435.8,2.91047]
[1721314441936,2.91006,3436.4,3435.6,2.91062]
[1721314442235,0.62973682,3436.5,3435.7,2.91061]
[1721314442454,3.53968682,3436.5,3435.7,2.91061]
[1721314442855,2.91009,3436.4,3435.7,2.91061]
[1721314443169,3.53966682,3436.5,3435.7,2.91053]
[1721314444088,3.53966682,3436.5,3435.7,2.91056]
[1721314444285,5.20871,3436.7,3435.9,2.91038]
[1721314444575,2.90986,3436.6,3435.9,2.91038]
[1721314445549,0.59290983,3436.9,3436.0,0.60820258]
[1721314445751,0.59290983,3436.9,3436.3,2.91005]
[1721314446375,0.59290983,3436.9,3436.6,2.90979]
[1721314446749,0.59290983,3436.9,3436.6,2.90978]
[1721314446951,2.90922,3437.4,3436.6,2.90978]
[1721314446952,0.59290983,3437.0,3436.6,2.90978]
[1721314447488,0.59290983,3437.0,3436.7,2.94163478]
[1721314448052,0.59290983,3437.0,3436.8,2.90964]
[1721314448414,0.59290983,3437.0,3436.8,2.94136695]
[1721314449056,0.59290983,3437.0,3436.9,5.81918]
[1721314449251,0.59290983,3437.0,3436.9,5.85079634]
[1721314449491,0.59290983,3437.0,3436.9,15.63238634]
[1721314450150,0.59290983,3437.0,3436.9,6.49120634]
[1721314450360,0.59290983,3437.0,3436.9,8.85079634]
[1721314452084,2.90867,3438.0,3437.2,2.90933]
[1721314452285,2.90853,3438.2,3437.3,2.90919]
[1721314452507,2.2853,3438.6,3437.3,2.90919]
[1721314452508,2.90866,3438.0,3437.3,0.03139187]
[1721314452804,2.90872,3438.0,3437.3,0.03139187]
[1721314452955,2.90872,3438.0,3437.2,2.90934]
[1721314453150,5.1935,3438.6,3437.4,0.03134712]
[1721314453351,2.90884,3437.8,3437.3,0.03139187]
[1721314453598,2.9088,3437.9,3437.4,0.03134712]
[1721314453883,2.9088,3437.9,3437.1,2.90937]
[1721314454064,2.90858,3438.1,3437.5,0.03130237]
[1721314454266,2.90858,3438.1,3437.3,2.90922]
[1721314454521,2.90845,3438.3,3437.6,0.03125763]
[1721314454658,2.2853,3438.6,3437.5,2.90908]
[1721314454659,2.90829,3438.5,3437.5,2.90908]
[1721314454858,2.90851,3438.2,3437.7,0.03121289]
[1721314455195,2.90858,3438.1,3437.4,2.90914]
[1721314455430,2.90858,3438.1,3437.8,0.03116815]
[1721314455557,0.581694,3438.1,3437.4,2.90914]
[1721314455759,2.90851,3438.2,3437.5,0.03130237]
[1721314456186,2.90836,3438.4,3437.5,0.03130237]
[1721314456187,2.90836,3438.4,3437.5,2.94038237]
[1721314456667,2.90824,3438.5,3437.5,0.03130237]
[1721314456993,3.0,3438.4,3437.7,2.90891]
[1721314457356,3.0,3438.4,3437.8,0.03116815]
[1721314457790,2.90808,3438.7,3437.8,0.03116815]
[1721314457954,2.90765,3439.2,3437.8,0.03116815]
[1721314457955,2.90784,3439.0,3437.9,2.90873]
[1721314458159,2.3299,3439.2,3437.9,2.90873]
[1721314458160,2.90797,3438.9,3437.9,5.81741]
[1721314458392,2.3299,3439.2,3437.9,5.81741]
[1721314458393,2.90799,3438.8,3438.0,2.93973868]
[1721314458771,2.90842,3438.3,3438.0,0.03107868]
[1721314458969,2.90821,3438.6,3438.0,0.03107868]
[1721314459228,2.90838,3438.4,3437.6,2.90899]
[1721314459390,2.90838,3438.4,3438.1,0.03080048]
[1721314459587,2.90785,3439.0,3437.6,2.90899]
[1721314459588,0.1485243,3439.4,3437.8,0.55]
[1721314459793,2.90765,3439.2,3438.4,2.90827]
[1721314460098,2.90774,3439.1,3438.5,0.03062159]
[1721314460300,2.90774,3439.1,3438.3,3.4584]
[1721314460473,0.1485243,3439.4,3438.6,0.03057687]
[1721314460677,0.1485243,3439.4,3437.7,3.0]
[1721314460876,2.90782,3439.0,3438.7,0.03053215]
[1721314461082,2.90782,3439.0,3438.3,2.90841]
[1721314461700,2.90768,3439.2,3438.4,2.93895631]
[1721314461701,2.90765,3439.2,3438.4,2.93895631]
[1721314461902,2.90793,3438.9,3438.4,0.03066631]
[1721314462103,2.90779,3439.1,3438.3,2.90841]
[1721314462285,2.90779,3439.1,3438.5,0.03062159]
[1721314462489,2.90779,3439.1,3438.4,2.90832]
[1721314462787,2.90779,3439.1,3438.6,0.03057687]
[1721314463005,2.90779,3439.1,3438.7,0.03053215]
[1721314463325,2.90779,3439.1,3438.2,2.90843]